lending/lending_fUSD_20250805
["ID","MTS","AMOUNT","RATE_DAILY","PERIOD"]
[377335488,1754355034175,-519.83,0.00048888,120]
[377335489,1754355034185,-400.0,0.00048888,120]
[377335490,1754355034196,-400.0,0.00048888,120]
[377335491,1754355034206,-400.0,0.00048888,120]
[377335492,1754355034216,-2027.87,0.00048888,120]
[377335493,1754355034225,-6385.21,0.00048888,120]
[377335494,1754355034235,-400.0,0.00048888,120]
[377335495,1754355034244,-2930.4,0.00048888,120]
[377335496,1754355034254,-400.0,0.00048888,120]
[377335497,1754355034263,-1366.77,0.00048888,120]
[377335498,1754355034273,-1541.97,0.00048888,120]
[377335499,1754355034283,-400.0,0.00048888,120]
[377335500,1754355034292,-6032.81,0.00048888,120]
[377335501,1754355034303,-400.0,0.00048888,120]
[377335502,1754355034312,-1036.91,0.00048888,120]
[377335503,1754355034323,-400.0,0.00048888,120]
[377335504,1754355034332,-3596.98,0.00048888,120]
[377335505,1754355034342,-400.0,0.00048888,2]
[377335506,1754355034352,-989.56,0.00048888,120]
[377335507,1754355034361,-400.0,0.00048888,120]
[377335508,1754355034372,-4023.08,0.00048888,120]
[377335509,1754355034381,-2155.65,0.00048888,120]
[377335510,1754355034391,-400.0,0.00048888,120]
[377335511,1754355034400,-400.0,0.00048888,120]
[377335512,1754355034410,-3077.14,0.00048888,120]
[377335513,1754355034420,-501.96,0.00048888,120]
[377335514,1754355034430,-4432.83,0.00048888,120]
[377335515,1754355034440,-696.7,0.00048888,120]
[377335516,1754355034450,-1731.28,0.00048888,120]
[377335517,1754355034459,-856.93,0.00048888,120]
[377335518,1754355034469,-886.9,0.00048888,120]
[377335519,1754355034479,-268.39983981,0.00048888,120]
[377335542,1754355038586,-151.0,0.00034778,2]
[377335543,1754355038600,-204.9999997,0.000471,3]
[377335544,1754355038614,-683.0000003,0.000471,3]
[377335545,1754355038624,-2740.31016019,0.00048888,120]
[377335546,1754355038634,-400.0,0.00048888,120]
[377335547,1754355038645,-1381.25,0.00048888,120]
[377335548,1754355038655,-400.0,0.00048888,120]
[377335549,1754355038666,-848.32866376,0.00048888,120]
[377335550,1754355038771,-1144.44820268,0.00048888,120]
[377335551,1754355038805,-503.93718342,0.00048888,120]
[377335552,1754355038817,-434.18895708,0.00048888,120]
[377335553,1754355038829,-83.03699306,0.00048888,120]
[377335554,1754355038838,-254.59717774,0.00048888,120]
[377335555,1754355038855,-238.03282226,0.00048888,120]
[377335556,1754355038865,-1511.15282578,0.00048888,120]
[377335557,1754355038877,-671.97717422,0.00048888,120]
[377335558,1754355038889,-400.0,0.00048888,120]
[377335559,1754355038900,-586.59374272,0.00048888,120]
[377335560,1754355038913,-1247.85625728,0.00048888,120]
[377335561,1754355038922,-2018.27559352,0.00048888,120]
[377335562,1754355038935,-7491.35440648,0.00048888,120]
[377335563,1754355038945,-400.0,0.00048888,120]
[377335564,1754355038955,-3996.4,0.00048888,120]
[377335565,1754355038965,-161.24559352,0.00048888,120]
[377335572,1754355040342,-238.75440648,0.00048888,120]
[377335573,1754355040362,-50.86479454,0.00048888,120]
[377335574,1754355040426,-349.13520546,0.00048888,120]
[377335575,1754355040450,-400.0,0.00048888,120]
[377335576,1754355040473,-7951.68195959,0.00048888,120]
[377335577,1754355040492,-7564.45804041,0.00048888,120]
[377335578,1754355040512,-400.0,0.00048888,120]
[377335579,1754355040531,-982.76075432,0.00048888,120]
[377335580,1754355040552,-228.38924568,0.00048888,120]
[377335581,1754355040593,-407.69,0.00048888,120]
[377335582,1754355040613,-772.37,0.00048888,120]
[377335583,1754355040632,-400.0,0.00048888,120]
[377335584,1754355040652,-5684.58,0.00048888,120]
[377335585,1754355040678,-1450.75461894,0.00048888,120]
[377335586,1754355040709,-2275.62538106,0.00048888,120]
[377335587,1754355040732,-2461.32,0.00048888,120]
[377335588,1754355040755,-781.36,0.00048888,120]
[377335589,1754355040776,-3559.24328046,0.00048888,120]
[377335590,1754355040800,-5589.69671954,0.00048888,120]
[377335591,1754355040823,-1449.95,0.00048888,120]
[377335592,1754355040842,-1904.19351535,0.00048888,120]
[377335593,1754355040866,-588.0,0.00048888,120]
[377335594,1754355040895,-444.5550025,0.00048888,120]
[377335595,1754355040941,-500.00614723,0.00048888,120]
[377335613,1754355044114,-59.6708783,0.00048888,120]
[377335614,1754355044127,-1764.988841,0.00048888,120]
[377335615,1754355044145,-823.51728227,0.00048888,120]
[377335616,1754355044156,-9454.09833335,0.00048888,120]
[377335617,1754355044167,-400.0,0.00048888,120]
[377335618,1754355044177,-198.35846881,0.00048888,120]
[377335619,1754355044186,-1354.8,0.00048888,120]
[377335620,1754355044197,-400.0,0.00048888,120]
[377335621,1754355044207,-13037.43,0.00048888,120]
[377335622,1754355044217,-400.0,0.00048888,120]
[377335623,1754355044227,-400.0,0.00048888,120]
[377335624,1754355044236,-781.36,0.00048888,120]
[377335625,1754355044246,-5713.4,0.00048888,14]
[377335626,1754355044256,-761.06,0.00048888,120]
[377335627,1754355044266,-874.54,0.00048888,120]
[377335628,1754355044276,-661.88,0.00048888,120]
[377335629,1754355044287,-7290.66,0.00048888,120]
[377335630,1754355044296,-1068.45,0.00048888,120]
[377335631,1754355044307,-549.87,0.00048888,120]
[377335632,1754355044318,-563.53,0.00048888,120]
[377335633,1754355044328,-400.0,0.00048888,120]
[377335634,1754355044338,-400.0,0.00048888,120]
[377335635,1754355044349,-492.11,0.00048888,120]
[377335636,1754355044359,-2704.18,0.00048888,120]
[377335637,1754355044369,-2477.42,0.00048888,120]
[377335638,1754355044379,-400.0,0.00048888,120]
[377335639,1754355044389,-3883.24,0.00048888,120]
[377335640,1754355044400,-1094.93,0.00048888,120]
[377335641,1754355044411,-878.32,0.00048888,120]
[377335642,1754355044420,-2436.11,0.00048888,120]
[377335643,1754355044430,-1292.75,0.00048888,120]
[377335644,1754355044440,-1442.16,0.00048888,120]
[377335645,1754355044450,-7785.95,0.00048888,120]
[377335646,1754355044460,-1745.43,0.00048888,120]
[377335647,1754355044470,-1095.24,0.00048888,120]
[377335648,1754355044479,-9018.92997765,0.00048888,120]
[377335660,1754355045855,-100.15436007,0.00048888,120]
[377335908,1754355048838,-2302.28236698,0.00048888,120]
[377335928,1754355049013,-704.65054335,0.00048888,120]
[377335934,1754355049062,-1078.98275195,0.00048888,120]
[377335936,1754355049072,-1195.03,0.00048888,120]
[377335938,1754355049082,-0.79275882,0.00048888,120]
[377336145,1754355130472,2400.0,1.26e-06,120]
[377336147,1754355230944,1681.77638821,0.0003,7]
[377336149,1754355848577,156.45,0.00013699,2]
[377336153,1754355967615,151.0,0.00013699,2]
[377336155,1754356168142,-150.0,0.00036921,120]
[377336156,1754356168164,-2500.0,0.00037527,120]
[377336157,1754356168188,-167.3,0.00038133,7]
[377336158,1754356168210,-215.33,0.00039412,2]
[377336159,1754356168236,-150.0,0.00039479,120]
[377336160,1754356168257,-150.0,0.00039547,120]
[377336161,1754356168279,-1600.0,0.00039645,5]
[377336162,1754356168301,-101.253582,0.00039648,15]
[377336165,1754356232210,-649.47155517,0.00038513,120]
[377336166,1754356232220,-606.55804838,0.00038513,120]
[377336167,1754356232265,-35.64081225,0.00038513,120]
[377336168,1754356232275,-350.0,0.00038513,120]
[377336169,1754356232285,-187.34919775,0.00039589,15]
[377336170,1754356232298,-438.28477985,0.00039589,15]
[377336171,1754356232308,-66.046418,0.00039648,15]
[377336172,1754356232318,-873.26883215,0.00039873,2]
[377336173,1754356232351,-601.51088843,0.00039873,2]
[377336174,1754356232375,-714.50273913,0.00039873,2]
[377336175,1754356232431,-4246.74813347,0.00039873,2]
[377336176,1754356232490,-1909.26909226,0.00039873,2]
[377336177,1754356232502,-322.85170899,0.00039873,2]
[377336178,1754356232513,-7359.99999996,0.00039873,2]
[377336179,1754356232525,-2094.0,0.00039873,2]
[377336180,1754356232537,-47854.85747086,0.00039873,2]
[377336181,1754356232625,-3687.0,0.00039873,2]
[377336183,1754356232638,-977.29870066,0.00039873,2]
[377336185,1754356232651,-4252.23445796,0.00039873,2]
[377336213,1754356238110,-10256.73116193,0.00039873,2]
[377336214,1754356238121,-589.87177723,0.00039873,2]
[377336215,1754356238165,-875.65385162,0.00039873,2]
[377336216,1754356238178,-8891.6452061,0.00039873,2]
[377336217,1754356238192,-865.69,0.00039873,2]
[377336221,1754356238491,-948.74718367,0.00039873,2]
[377336224,1754356238503,-425.86134652,0.00039873,2]
[377336226,1754356238514,-784.82832574,0.00039873,2]
[377336228,1754356238525,-351.89980069,0.00039873,2]
[377336232,1754356238547,-6968.30050076,0.00039873,2]
[377336380,1754356240169,-339.68219991,0.00039873,2]
[377336383,1754356240181,-24566.47105613,0.00039873,2]
[377336388,1754356240223,-259.60347086,0.00039873,2]
[377336401,1754356240347,-348.77881328,0.00039873,2]
[377336404,1754356240363,-9272.0,0.00039873,2]
[377336409,1754356240408,-512.27802841,0.00039873,2]
[377336411,1754356240420,-3348.16467372,0.00039873,2]
[377336413,1754356240431,-11237.0,0.00039873,2]
[377336528,1754356241615,-13474.64007946,0.00039873,2]
[377336529,1754356241625,-444.25922713,0.000399,41]
[377336531,1754356241635,-444.25922713,0.00040245,42]
[377336533,1754356241645,-444.25922713,0.0004059,42]
[377336535,1754356241655,-2200.0,0.00040612,5]
[377336537,1754356241665,-300.0,0.00040613,120]
[377336539,1754356241674,-250.0,0.00040613,2]
[377336540,1754356241684,-2500.0,0.00040613,120]
[377336542,1754356241693,-150.0,0.00040835,120]
[377336544,1754356241704,-444.25922713,0.00040934,43]
[377336546,1754356241714,-215.33,0.00041142,120]
[377336548,1754356241724,-167.3,0.00041162,120]
[377336550,1754356241733,-444.25922713,0.00041279,44]
[377336552,1754356241743,-150.0,0.00041544,120]
[377336554,1754356241753,-444.25922713,0.00041624,45]
[377336556,1754356241762,-185.7,0.00041884,2]
[377336558,1754356241772,-444.25922713,0.00041969,45]
[377336560,1754356241782,-444.25922713,0.00042314,46]
[377336562,1754356241792,-1200.0,0.00042451,5]
[377336564,1754356241801,-441.86,0.00042598,7]
[377336566,1754356241810,-444.25922713,0.00042659,47]
[377336567,1754356241819,-167.3,0.00042677,120]
[377336569,1754356241829,-150.0,0.00042849,120]
[377336571,1754356241838,-215.33,0.00042873,120]
[377336573,1754356241847,-444.25922713,0.00043003,47]
[377336575,1754356241859,-444.25922713,0.00043348,48]
[377336577,1754356241868,-760.0,0.0004345,5]
[377336579,1754356241877,-444.25922713,0.00043693,49]
[377336581,1754356241887,-444.25922713,0.00044038,49]
[377336583,1754356241896,-167.3,0.00044192,120]
[377336585,1754356241906,-23900.0,0.00044244,2]
[377336586,1754356241916,-5000.0,0.0004426,2]
[377336588,1754356241925,-175.0,0.00044296,7]
[377336590,1754356241935,-444.25922713,0.00044383,50]
[377336592,1754356241944,-243.023,0.00044383,70]
[377336594,1754356241953,-1000.0,0.0004451,120]
[377336596,1754356241963,-156.45,0.00044521,2]
[377336598,1754356241973,-250.0,0.00044524,120]
[377336600,1754356241983,-200.0,0.00044579,2]
[377336602,1754356241992,-204.97,0.00044588,2]
[377336603,1754356242000,-215.33,0.00044603,120]
[377336605,1754356242010,-152.0,0.00044607,3]
[377336607,1754356242019,-444.25922713,0.00044728,51]
[377336609,1754356242029,-650.2,0.00044807,36]
[377336611,1754356242039,-579.38,0.00044847,120]
[377336613,1754356242048,-179.09,0.00044847,2]
[377336615,1754356242058,-859.36,0.00044991,2]
[377336617,1754356242067,-153.0,0.00045,120]
[377336619,1754356242076,-666.0,0.00045022,3]
[377336621,1754356242085,-444.25922713,0.00045072,51]
[377336623,1754356242096,-1000.0,0.00045109,2]
[377336625,1754356242114,-444.25922713,0.00045417,52]
[377336627,1754356242124,-1000.0,0.00045692,30]
[377336629,1754356242133,-167.3,0.00045706,120]
[377336631,1754356242142,-444.25922713,0.00045762,53]
[377336633,1754356242152,-150.0,0.00045948,120]
[377336635,1754356242162,-500.0,0.00046,120]
[377336637,1754356242172,-433.74902243,0.00046088,2]
[377336639,1754356242182,-444.25922713,0.00046107,53]
[377336641,1754356242192,-505.0,0.00046217,10]
[377336643,1754356242203,-546.38873,0.00046217,10]
[377336644,1754356242212,-464.6113,0.00046217,10]
[377336646,1754356242222,-536.56,0.00046217,30]
[377336648,1754356242231,-150.0,0.00046217,30]
[377336650,1754356242240,-818.03,0.00046217,30]
[377336652,1754356242249,-333.12,0.00046217,30]
[377336654,1754356242259,-204.97,0.0004626,2]
[377336656,1754356242268,-339.38,0.00046269,2]
[377336658,1754356242278,-339.38,0.00046293,2]
[377336660,1754356242287,-339.38,0.00046317,2]
[377336662,1754356242297,-215.33,0.00046333,120]
[377336663,1754356242306,-339.38,0.00046342,2]
[377336665,1754356242315,-339.38,0.00046366,2]
[377336667,1754356242325,-339.38,0.0004639,2]
[377336669,1754356242333,-339.38,0.00046415,2]
[377336671,1754356242343,-339.38,0.00046439,2]
[377336673,1754356242352,-444.25922713,0.00046452,54]
[377336675,1754356242362,-339.38,0.00046463,2]
[377336677,1754356242372,-339.38,0.00046488,2]
[377336679,1754356242381,-339.38,0.00046512,2]
[377336681,1754356242390,-339.38,0.00046536,2]
[377336682,1754356242400,-211.425049,0.00046547,2]
[377336684,1754356242409,-160.0,0.00046547,2]
[377336686,1754356242418,-339.38,0.00046561,2]
[377336688,1754356242427,-3000.0,0.00046574,60]
[377336690,1754356242437,-339.38,0.00046585,2]
[377336692,1754356242447,-339.38,0.0004661,2]
[377336694,1754356242456,-339.38,0.00046634,2]
[377336695,1754356242466,-339.38,0.00046658,2]
[377336696,1754356242474,-339.38,0.00046683,2]
[377336697,1754356242483,-339.38,0.00046707,2]
[377336698,1754356242492,-339.38,0.00046731,2]
[377336699,1754356242501,-444.25922713,0.00046797,55]
[377336700,1754356242510,-1000.0,0.0004681,2]
[377336701,1754356242519,-186.44676695,0.00046932,120]
[377336702,1754356242528,-333.33,0.00046946,120]
[377336703,1754356242537,-5000.0,0.00047051,120]
[377336704,1754356242546,-3000.0,0.00047122,60]
[377336705,1754356242556,-444.25922713,0.00047141,55]
[377336706,1754356242565,-624.84,0.00047199,2]
[377336707,1754356242574,-167.3,0.00047221,120]
[377336708,1754356242583,-150.0,0.00047234,120]
[377336709,1754356242592,-530.23,0.00047421,14]
[377336710,1754356242601,-444.25922713,0.00047486,56]
[377336712,1754356242613,-2190.91751316,0.0004767,60]
[377336781,1754356244295,-153.0,0.000469,120]
[377336782,1754356244304,-888.0,0.00047085,3]
[377336783,1754356244316,-809.08248684,0.0004767,60]
[377336784,1754356244326,-1581.6668,0.00047741,2]
[377336785,1754356244335,-5374.63182895,0.00047768,2]
[377336786,1754356244345,-165.27,0.00047778,14]
[377336787,1754356244355,-182.78,0.0004779,14]
[377336788,1754356244365,-444.25922713,0.00047831,57]
[377336789,1754356244374,-654.3233614,0.00047841,2]
[377336790,1754356244395,-252.86084165,0.00047841,2]
[377336791,1754356244415,-1599.334,0.00047841,2]
[377336792,1754356244427,-600.0,0.00047841,2]
[377336793,1754356244438,-1751.77654811,0.00047841,2]
[377336794,1754356244457,-104.435962,0.00047841,2]
[377336795,1754356244467,-169.17,0.00047853,2]
[377336796,1754356244477,-165.58,0.00047896,2]
[377336797,1754356244486,-24.1511441,0.000479,2]
[377336799,1754356246253,-657.5104487,0.000474,120]
[377336800,1754356246266,-230.4895513,0.000474,120]
[377336801,1754356246277,-1785.4714487,0.000479,2]
[377336802,1754356246313,-1087.39534272,0.000479,2]
[377336803,1754356246365,-534.35,0.000479,2]
[377336804,1754356246377,-566.28056448,0.000479,2]
[377336805,1754356246387,-204.97,0.00047932,2]
[377336806,1754356246397,-1769.92486214,0.00047942,15]
[377336807,1754356246407,-161.90734523,0.00047942,120]
[377336808,1754356246417,-150.0,0.00047963,120]
[377336809,1754356246426,-10513.25889305,0.00048,7]
[377336810,1754356246537,-15938.12884611,0.00048,7]
[377336811,1754356246547,-457.87911029,0.00048042,120]
[377336812,1754356246557,-1769.92486209,0.00048043,15]
[377336813,1754356246567,-215.33,0.00048064,120]
[377336814,1754356246576,-1769.92486209,0.00048144,15]
[377336815,1754356246586,-530.23,0.00048159,14]
[377336816,1754356246602,-444.25922713,0.00048176,57]
[377336817,1754356246619,-505.0,0.00048186,10]
[377336818,1754356246628,-3000.0,0.00048218,60]
[377336819,1754356246638,-1769.92486209,0.00048245,15]
[377336820,1754356246647,-1028.77034961,0.00048336,60]
[377336821,1754356246657,-5144.75,0.00048337,120]
[377336822,1754356246666,-1769.92486209,0.00048346,15]
[377336823,1754356246676,-829.2515755,0.000484,42]
[377336838,1754356455161,211.34237278,0.0003,7]
[377336840,1754356760775,368.0,0.00025,30]
[377336843,1754356790073,157.42,0.00013699,2]
[377336844,1754357109606,49535.13,0.00019,2]
[377336845,1754357109632,50000.0,0.00019,2]
[377336846,1754357109660,50000.0,0.00019,2]
[377336847,1754357109688,50000.0,0.00019,2]
[377336848,1754357109714,50000.0,0.00019,2]
[377336849,1754357109745,52671.12515516,0.00019,2]
[377336850,1754357109772,178326.74157475,0.00019,2]
[377336851,1754357110551,353.5273455,0.000154,2]
[377336852,1754357119826,309.0210273,9e-05,2]
[377336853,1754357166956,681.45348146,0.00015,2]
[377336855,1754357202040,-150.0,0.00037536,120]
[377336856,1754357202063,-53.57706257,0.00040893,2]
[377336858,1754357218335,5000.00969185,0.00024,5]
[377336859,1754357271355,-196.4733362,0.0003121,2]
[377336860,1754357275086,-336.20716482,0.0003121,2]
[377336862,1754357278370,-274.7745027,0.0003121,2]
[377336863,1754357279759,12156.10172615,0.00019,2]
[377336864,1754357279784,50000.0,0.00019,2]
[377336865,1754357279809,10000.0,0.00019,2]
[377336866,1754357279834,34956.0601731,0.00019,2]
[377336867,1754357282123,-180.88739213,0.0003121,2]
[377336869,1754357284735,-217.092,0.0003121,2]
[377336870,1754357289259,-214.49955408,0.0003121,2]
[377336871,1754357291183,-186.50044592,0.0003121,2]
[377336872,1754357295054,-151.0,0.0003121,2]
[377336873,1754357298846,-257.65967242,0.0003121,2]
[377336874,1754357302914,-303.34032758,0.0003121,2]
[377336875,1754357318518,7495.72,0.000151,2]
[377336880,1754357328077,-291.0,0.0002199,2]
[377336883,1754357335854,-196.78846283,0.0002199,2]
[377336885,1754357338081,-247.55279595,0.0002199,2]
[377336886,1754357341061,-158.65874122,0.0002199,2]
[377336887,1754357343224,-178.632,0.0002199,2]
[377336888,1754357345993,-310.71674122,0.0002199,2]
[377336889,1754357351268,-320.70577067,0.0002199,2]
[377336890,1754357357790,-299.34496121,0.0002199,2]
[377336891,1754357360620,-151.0,0.0002199,2]
[377336892,1754357362653,-152.00883827,0.0002199,2]
[377336893,1754357366079,-308.712627,0.0002199,2]
[377336894,1754357368789,-228.1,0.0002199,2]
[377336895,1754357369876,-154.08,0.0002199,2]
[377336896,1754357378014,-228.1,0.0002199,2]
[377336897,1754357380400,-235.10746444,0.0002199,2]
[377336898,1754357381852,-36.49982905,0.0002199,2]
[377336899,1754357381892,-114.50017095,0.000232,2]
[377336900,1754357383452,-156.00656724,0.000232,2]
[377336901,1754357386100,-173.33,0.000232,2]
[377336902,1754357387679,-165.80323268,0.000232,2]
[377336903,1754357391701,-187.05247267,0.000232,2]
[377336904,1754357393187,-301.7641245,0.000232,2]
[377336905,1754357395387,-276.712627,0.000232,2]
[377336906,1754357397896,-166.47909726,0.000232,2]
[377336907,1754357401785,-281.03965652,0.000232,2]
[377336908,1754357403424,-272.77151332,0.000232,2]
[377336911,1754357432672,-2024.46642192,0.000232,2]
[377336913,1754357432683,-250.0,0.0002552,2]
[377336914,1754357432692,-500.0,0.0002704,2]
[377336915,1754357432702,-500.0,0.0002704,2]
[377336918,1754357432713,-500.0,0.0002704,2]
[377336920,1754357432723,-19318.84420403,0.0003121,2]
[377336923,1754357432733,-202.45802315,0.000319,25]
[377336924,1754357432745,-202.45802306,0.000331,28]
[377336925,1754357432758,-202.45802306,0.000343,30]
[377336926,1754357432767,-250.0,0.00034331,2]
[377336927,1754357432778,-250.0,0.00034483,2]
[377336928,1754357432788,-1208.06367444,0.00035,2]
[377336929,1754357432798,-376.34124151,0.00035,30]
[377336930,1754357432808,-530.72222952,0.00035,90]
[377336931,1754357432819,-200.0,0.00035,120]
[377336932,1754357432828,-467.58,0.0003535,7]
[377336933,1754357432838,-202.45802306,0.000355,32]
[377336934,1754357432847,-202.45802306,0.000367,35]
[377336935,1754357432857,-653.08,0.00037771,2]
[377336936,1754357432867,-202.45802306,0.000379,37]
[377336937,1754357432878,-199.5351145,0.00038427,2]
[377336938,1754357432887,-10034.98176908,0.00038532,2]
[377336939,1754357432897,-1564.77879503,0.00038532,2]
[377336940,1754357433020,-1241.34210306,0.00038532,2]
[377336941,1754357433030,-13872.41009662,0.00038532,2]
[377336942,1754357433041,-6145.75838693,0.00038532,2]
[377336958,1754357438973,-427.60497589,0.00038532,2]
[377336959,1754357438984,-756.8320093,0.00038532,2]
[377336960,1754357438995,-2022.5435514,0.00038532,2]
[377336961,1754357439007,-2273.41895279,0.00038532,2]
[377337037,1754357440550,-51215.18257926,0.00038532,2]
[377337038,1754357440563,-704.90172732,0.00038532,2]
[377337039,1754357440576,-1642.76267347,0.00038532,2]
[377337040,1754357440588,-5084.79240321,0.00038532,2]
[377337041,1754357440597,-1532.3430034,0.00038532,2]
[377337042,1754357440607,-191.39591755,0.00038532,30]
[377337043,1754357440617,-57.46548864,0.00038532,2]
[377337044,1754357440629,-4884.40999999,0.00038532,2]
[377337045,1754357440641,-254.3252706,0.00038532,2]
[377337046,1754357440789,-28.4500885,0.00038532,2]
[377337047,1754357440799,-2474.1180805,0.00038532,2]
[377337048,1754357440809,-8.43183101,0.00038532,2]
[377337049,1754357440820,-1576.01178231,0.00038532,2]
[377337050,1754357440832,-1141.45929718,0.00038532,2]
[377337051,1754357440842,-584.54790591,0.00038532,2]
[377337052,1754357440853,-1106.1818846,0.00038532,2]
[377337053,1754357440863,-3013.27091641,0.00038532,2]
[377337054,1754357440873,-258.39013124,0.00038532,120]
[377337072,1754357441198,-0.01111104,0.00038532,120]
[377337080,1754357441267,-125.19015563,0.00038532,120]
[377337082,1754357441277,-469.44715732,0.00038532,2]
[377337093,1754357443752,-6441.85754201,0.00038532,2]
[377337094,1754357443763,-1271.33498163,0.00038532,2]
[377337095,1754357443773,-5549.31591411,0.00038532,2]
[377337096,1754357443878,-22.61967363,0.00038532,2]
[377337097,1754357443890,-2205.93047286,0.00038532,2]
[377337098,1754357443899,-463.17355867,0.00038532,120]
[377337100,1754357443909,-9304.1041202,0.00038532,2]
[377337101,1754357443918,-1321.61250125,0.00038532,2]
[377337102,1754357443929,-3446.26187761,0.00038532,2]
[377337103,1754357443939,-46389.40047162,0.00038532,2]
[377337104,1754357443949,-882.50252711,0.00038532,2]
[377337105,1754357443958,-500.0,0.000386,5]
[377337106,1754357443968,-500.0,0.000386,5]
[377337107,1754357443978,-500.0,0.000386,5]
[377337108,1754357443987,-500.0,0.000386,5]
[377337109,1754357443998,-202.45802306,0.000391,40]
[377337111,1754357444007,-1000.0,0.00039148,5]
[377337114,1754357444017,-1000.0,0.00039148,5]
[377337117,1754357444027,-500.0,0.0003985,5]
[377337120,1754357444036,-550.34693126,0.0003985,5]
[377337122,1754357444046,-769.17,0.0004,120]
[377337125,1754357444055,-258.49,0.0004,120]
[377337127,1754357444066,-202.45802306,0.000403,42]
[377337129,1754357444076,-503.34255844,0.00040398,5]
[377337130,1754357444086,-181.57293743,0.00040893,2]
[377337131,1754357444098,-392.80038979,0.00040996,15]
[377337132,1754357444109,-56206.4688946,0.00041039,2]
[377337133,1754357444118,-174.49698058,0.00041067,31]
[377337134,1754357444128,-409.56172827,0.00041067,31]
[377337135,1754357444139,-171.88388267,0.00041067,31]
[377337136,1754357444148,-179237.5981666,0.00041068,2]
[377337138,1754357444157,-253.62484698,0.00041096,2]
[377337139,1754357444167,-1000.0,0.00041096,30]
[377337141,1754357444176,-200.0,0.00041096,20]
[377337145,1754357444187,-200.0,0.00041096,20]
[377337147,1754357444196,-202.45802306,0.000415,44]
[377337150,1754357444206,-392.80038975,0.00041953,15]
[377337153,1754357444215,-235.15,0.00042623,120]
[377337156,1754357444225,-202.45802306,0.000427,47]
[377337158,1754357444234,-419.35075399,0.00042895,2]
[377337160,1754357444244,-392.80038975,0.0004291,15]
[377337162,1754357444254,-150.0,0.00043545,2]
[377337164,1754357444263,-501.37762983,0.00043799,2]
[377337166,1754357444274,-392.80038975,0.00043867,15]
[377337168,1754357444284,-202.45802306,0.000439,49]
[377337170,1754357444295,-181.18,0.00043905,2]
[377337172,1754357444305,-8343.06048235,0.00044,7]
[377337174,1754357444314,-588.03549177,0.00044053,2]
[377337176,1754357444324,-674.69335372,0.00044307,2]
[377337178,1754357444334,-235.15,0.00044354,120]
[377337180,1754357444343,-761.35121566,0.00044561,2]
[377337182,1754357444353,-380.0,0.00044603,2]
[377337184,1754357444363,-848.00907761,0.00044816,2]
[377337186,1754357444374,-392.80038975,0.00044824,15]
[377337188,1754357444384,-613.0,0.00044847,30]
[377337190,1754357444395,-500.0,0.00044908,2]
[377337192,1754357444405,-500.0,0.00044908,2]
[377337194,1754357444414,-200.0,0.00045,120]
[377337196,1754357444424,-175.0,0.00045029,7]
[377337198,1754357444434,-934.66693955,0.0004507,2]
[377337200,1754357444443,-202.45802306,0.000451,51]
[377337202,1754357444453,-308.61616059,0.00045264,2]
[377337204,1754357444463,-1021.3248015,0.00045324,2]
[377337206,1754357444472,-1107.98266344,0.00045578,2]
[377337208,1754357444481,-392.80038975,0.00045781,15]
[377337210,1754357444490,-1194.64052539,0.00045832,2]
[377337212,1754357444499,-1993.3944219,0.00046,120]
[377337214,1754357444509,-235.15,0.00046084,120]
[377337216,1754357444519,-1281.29838733,0.00046086,2]
[377337218,1754357444529,-1137.79,0.00046093,2]
[377337220,1754357444539,-1000.0,0.00046093,30]
[377337222,1754357444549,-23900.0,0.00046129,2]
[377337224,1754357444558,-506.0,0.00046155,10]
[377337226,1754357444568,-154.08,0.00046155,10]